[Event "Titled Tuesday Blitz July 11 Late 2023"]
[White "Czopor, Maciej"]
[Black "Slovineanu, Viacheslav"]
[WhiteFideId "21805431"]
[BlackFideId "13900510"]
[WhiteElo "2651"]
[BlackElo "2364"]
[Result "1/2-1/2"]
[Round "1"]
[TimeControl "180+2"]
[Date "2023.07.11"]
[WhiteClock "0:01:15"]
[BlackClock "0:00:09"]
[Board "108"]

1. Nf3 {[%clk 0:03:00]}  d5 {[%clk 0:02:58]} 2. c4 {[%clk 0:03:01]}  e6 {[%clk 0:02:56]} 3. e3 {[%clk 0:03:01]}  Nf6 {[%clk 0:02:55]} 4. g3 {[%clk 0:03:00]}  Be7 {[%clk 0:02:44]} 5. b3 {[%clk 0:03:00]}  b6 {[%clk 0:02:39]} 6. Bb2 {[%clk 0:02:58]}  dxc4 {[%clk 0:02:36]} 7. bxc4 {[%clk 0:02:58]}  Bb7 {[%clk 0:02:36]} 8. Be2 {[%clk 0:02:57]}  c5 {[%clk 0:02:31]} 9. O-O {[%clk 0:02:55]}  O-O {[%clk 0:02:31]} 10. a4 {[%clk 0:02:55]}  Nc6 {[%clk 0:02:30]} 11. d3 {[%clk 0:02:49]}  Qc7 {[%clk 0:02:28]} 12. Nc3 {[%clk 0:02:46]}  Rad8 {[%clk 0:02:25]} 13. Nb5 {[%clk 0:02:44]}  Qb8 {[%clk 0:02:24]} 14. Qb3 {[%clk 0:02:43]}  Rd7 {[%clk 0:02:22]} 15. Rad1 {[%clk 0:02:41]}  Rfd8 {[%clk 0:02:21]} 16. e4 {[%clk 0:02:38]}  Ng4 {[%clk 0:02:03]} 17. h3 {[%clk 0:02:33]}  Nge5 {[%clk 0:01:57]} 18. Nxe5 {[%clk 0:02:32]}  Nxe5 {[%clk 0:01:57]} 19. f4 {[%clk 0:02:29]}  Nc6 {[%clk 0:01:48]} 20. Kh2 {[%clk 0:02:14]}  Bf6 {[%clk 0:01:40]} 21. e5 {[%clk 0:02:13]}  Be7 {[%clk 0:01:38]} 22. Bf3 {[%clk 0:02:02]}  Nb4 {[%clk 0:01:36]} 23. d4 {[%clk 0:01:57]}  a6 {[%clk 0:01:31]} 24. Nd6 {[%clk 0:01:35]}  Bxd6 {[%clk 0:01:25]} 25. exd6 {[%clk 0:01:36]}  Rxd6 {[%clk 0:01:25]} 26. dxc5 {[%clk 0:01:33]}  Rxd1 {[%clk 0:01:18]} 27. Rxd1 {[%clk 0:01:25]}  Bxf3 {[%clk 0:01:17]} 28. Rxd8+ {[%clk 0:01:15]}  Qxd8 {[%clk 0:01:16]} 29. Qxb4 {[%clk 0:01:15]}  Qd1 {[%clk 0:00:09]} 30. g4 {[%clk 0:01:15]} 1/2-1/2


[Site "https://www.chess.com"]

[Event "Titled Tuesday Blitz July 11 Late 2023"]
[White "Krzywda, Andrzej"]
[Black "Fantinel, Thibault"]
[WhiteFideId "1114565"]
[BlackFideId "663395"]
[WhiteElo "2363"]
[BlackElo "2639"]
[Result "1-0"]
[Round "1"]
[TimeControl "180+2"]
[Date "2023.07.11"]
[WhiteClock "0:00:07"]
[BlackClock "0:00:07"]
[Board "111"]

1. e4 {[%clk 0:02:59]}  c5 {[%clk 0:02:59]} 2. Nf3 {[%clk 0:02:59]}  e6 {[%clk 0:03:00]} 3. d4 {[%clk 0:03:00]}  cxd4 {[%clk 0:03:01]} 4. Nxd4 {[%clk 0:03:00]}  Nf6 {[%clk 0:03:01]} 5. Bd3 {[%clk 0:02:58]}  Nc6 {[%clk 0:02:59]} 6. Nxc6 {[%clk 0:02:58]}  bxc6 {[%clk 0:03:00]} 7. O-O {[%clk 0:02:58]}  d5 {[%clk 0:03:00]} 8. Nd2 {[%clk 0:02:57]}  Be7 {[%clk 0:03:01]} 9. Re1 {[%clk 0:02:54]}  O-O {[%clk 0:03:01]} 10. e5 {[%clk 0:02:54]}  Nd7 {[%clk 0:03:01]} 11. Qh5 {[%clk 0:02:55]}  g6 {[%clk 0:03:01]} 12. Qe2 {[%clk 0:02:55]}  Nc5 {[%clk 0:03:01]} 13. Nf3 {[%clk 0:02:46]}  a5 {[%clk 0:03:01]} 14. Bh6 {[%clk 0:02:46]}  Re8 {[%clk 0:03:01]} 15. Nd4 {[%clk 0:02:41]}  Qc7 {[%clk 0:02:52]} 16. c3 {[%clk 0:02:23]}  Nxd3 {[%clk 0:02:50]} 17. Qxd3 {[%clk 0:02:24]}  Ba6 {[%clk 0:02:50]} 18. Qg3 {[%clk 0:02:15]}  c5 {[%clk 0:02:47]} 19. Nf3 {[%clk 0:02:15]}  Rab8 {[%clk 0:02:47]} 20. b3 {[%clk 0:02:11]}  a4 {[%clk 0:02:42]} 21. Ng5 {[%clk 0:02:02]}  axb3 {[%clk 0:02:03]} 22. axb3 {[%clk 0:02:01]}  Bc8 {[%clk 0:01:55]} 23. Qf4 {[%clk 0:01:41]}  Bd8 {[%clk 0:01:26]} 24. Re3 {[%clk 0:01:05]}  Rxb3 {[%clk 0:01:19]} 25. Rf3 {[%clk 0:01:00]}  Rb7 {[%clk 0:01:06]} 26. Nxh7 {[%clk 0:00:30]}  Kxh7 {[%clk 0:00:58]} 27. Rh3 {[%clk 0:00:30]}  Kg8 {[%clk 0:00:55]} 28. Bg7 {[%clk 0:00:22]}  f5 {[%clk 0:00:44]} 29. Rh8+ {[%clk 0:00:17]}  Kf7 {[%clk 0:00:44]} 30. Rh7 {[%clk 0:00:12]}  Rg8 {[%clk 0:00:27]} 31. Bf6+ {[%clk 0:00:10]}  Ke8 {[%clk 0:00:28]} 32. Rxc7 {[%clk 0:00:10]}  Bxc7 {[%clk 0:00:28]} 33. h4 {[%clk 0:00:07]}  Kd7 {[%clk 0:00:07]} 34. Qa4+ {[%clk 0:00:07]} 1-0


[Site "https://www.chess.com"]

[Event "Titled Tuesday Blitz July 11 Late 2023"]
[White "Makaj, Marko"]
[Black "Tarasova, Viktoriya"]
[WhiteFideId "14508141"]
[BlackFideId "4175840"]
[WhiteElo "2630"]
[BlackElo "2359"]
[Result "0-1"]
[Round "1"]
[TimeControl "180+2"]
[Date "2023.07.11"]
[WhiteClock "0:00:58"]
[BlackClock "0:00:09"]
[Board "114"]

1. d4 {[%clk 0:02:53]}  Nf6 {[%clk 0:02:59]} 2. Bg5 {[%clk 0:02:53]}  d5 {[%clk 0:02:59]} 3. e3 {[%clk 0:02:53]}  c5 {[%clk 0:02:58]} 4. Nc3 {[%clk 0:02:51]}  e6 {[%clk 0:02:52]} 5. Nf3 {[%clk 0:02:51]}  Nc6 {[%clk 0:02:52]} 6. Bb5 {[%clk 0:02:51]}  cxd4 {[%clk 0:02:50]} 7. exd4 {[%clk 0:02:50]}  Be7 {[%clk 0:02:48]} 8. O-O {[%clk 0:02:50]}  O-O {[%clk 0:02:48]} 9. Ne2 {[%clk 0:02:49]}  Bd7 {[%clk 0:02:48]} 10. c3 {[%clk 0:02:48]}  h6 {[%clk 0:02:47]} 11. Bf4 {[%clk 0:02:45]}  a6 {[%clk 0:02:47]} 12. Bd3 {[%clk 0:02:45]}  Ne4 {[%clk 0:02:47]} 13. Ng3 {[%clk 0:02:43]}  f5 {[%clk 0:02:45]} 14. Re1 {[%clk 0:02:34]}  g5 {[%clk 0:02:39]} 15. Bc1 {[%clk 0:02:29]}  Bf6 {[%clk 0:02:38]} 16. Nd2 {[%clk 0:02:24]}  Bh8 {[%clk 0:02:20]} 17. Qh5 {[%clk 0:02:21]}  Qf6 {[%clk 0:02:19]} 18. f3 {[%clk 0:02:15]}  Be8 {[%clk 0:01:53]} 19. Qh3 {[%clk 0:02:14]}  Nxd4 {[%clk 0:00:42]} 20. fxe4 {[%clk 0:02:08]}  g4 {[%clk 0:00:42]} 21. Nh5 {[%clk 0:02:05]}  Qg5 {[%clk 0:00:22]} 22. Qg3 {[%clk 0:01:38]}  Qxh5 {[%clk 0:00:15]} 23. cxd4 {[%clk 0:01:36]}  Bxd4+ {[%clk 0:00:15]} 24. Kh1 {[%clk 0:01:36]}  f4 {[%clk 0:00:15]} 25. Nf1 {[%clk 0:01:12]}  fxg3 {[%clk 0:00:14]} 26. Nxg3 {[%clk 0:01:13]}  Qh4 {[%clk 0:00:11]} 27. Be3 {[%clk 0:01:05]}  Bxe3 {[%clk 0:00:09]} 28. Rxe3 {[%clk 0:01:06]}  d4 {[%clk 0:00:10]} 29. Re2 {[%clk 0:01:06]}  Bb5 {[%clk 0:00:09]} 30. Bxb5 {[%clk 0:01:03]}  axb5 {[%clk 0:00:10]} 31. e5 {[%clk 0:01:04]}  Rad8 {[%clk 0:00:11]} 32. Rd1 {[%clk 0:01:03]}  d3 {[%clk 0:00:11]} 33. Red2 {[%clk 0:01:04]}  Rd4 {[%clk 0:00:10]} 34. Kg1 {[%clk 0:01:03]}  Qg5 {[%clk 0:00:09]} 35. Rxd3 {[%clk 0:01:02]}  Rxd3 {[%clk 0:00:09]} 36. Rxd3 {[%clk 0:00:58]}  Qc1+ {[%clk 0:00:09]} 0-1


[Site "https://www.chess.com"]

[Event "Titled Tuesday Blitz July 11 Late 2023"]
[White "BenchGM"]
[Black "Bjelobrk, Igor"]
[BlackFideId "4300726"]
[WhiteElo "2355"]
[BlackElo "2630"]
[Result "0-1"]
[Round "1"]
[TimeControl "180+2"]
[Date "2023.07.11"]
[WhiteClock "0:00:00"]
[BlackClock "0:00:07"]
[Board "115"]

1. e4 {[%clk 0:03:00]}  e6 {[%clk 0:02:56]} 2. d4 {[%clk 0:03:00]}  d5 {[%clk 0:02:55]} 3. Nd2 {[%clk 0:02:58]}  c5 {[%clk 0:02:55]} 4. exd5 {[%clk 0:02:55]}  exd5 {[%clk 0:02:55]} 5. Bb5+ {[%clk 0:02:55]}  Nc6 {[%clk 0:02:53]} 6. Ngf3 {[%clk 0:02:55]}  cxd4 {[%clk 0:02:46]} 7. O-O {[%clk 0:02:46]}  Bd6 {[%clk 0:02:44]} 8. Nb3 {[%clk 0:02:38]}  Ne7 {[%clk 0:02:39]} 9. Qxd4 {[%clk 0:02:02]}  O-O {[%clk 0:02:29]} 10. Qh4 {[%clk 0:02:01]}  Ng6 {[%clk 0:02:18]} 11. Qxd8 {[%clk 0:01:56]}  Rxd8 {[%clk 0:02:19]} 12. Bg5 {[%clk 0:01:50]}  f6 {[%clk 0:02:18]} 13. Be3 {[%clk 0:01:48]}  a6 {[%clk 0:02:14]} 14. Bxc6 {[%clk 0:01:36]}  bxc6 {[%clk 0:02:13]} 15. Bc5 {[%clk 0:01:34]}  Bc7 {[%clk 0:02:12]} 16. Nfd4 {[%clk 0:01:26]}  Bd7 {[%clk 0:02:10]} 17. Rfe1 {[%clk 0:01:18]}  Kf7 {[%clk 0:02:09]} 18. Re3 {[%clk 0:01:06]}  a5 {[%clk 0:02:05]} 19. a4 {[%clk 0:01:04]}  Re8 {[%clk 0:01:59]} 20. Rae1 {[%clk 0:01:04]}  Rxe3 {[%clk 0:01:59]} 21. Rxe3 {[%clk 0:01:03]}  Rb8 {[%clk 0:01:57]} 22. Ba3 {[%clk 0:01:00]}  Re8 {[%clk 0:00:54]} 23. Nc5 {[%clk 0:00:33]}  Rxe3 {[%clk 0:00:43]} 24. fxe3 {[%clk 0:00:34]}  Be8 {[%clk 0:00:38]} 25. Na6 {[%clk 0:00:33]}  Be5 {[%clk 0:00:34]} 26. Nb3 {[%clk 0:00:28]}  Nh4 {[%clk 0:00:25]} 27. Nxa5 {[%clk 0:00:22]}  Nf5 {[%clk 0:00:22]} 28. Kf2 {[%clk 0:00:19]}  Bxh2 {[%clk 0:00:22]} 29. Nb4 {[%clk 0:00:16]}  Ne7 {[%clk 0:00:19]} 30. Nd3 {[%clk 0:00:15]}  Bc7 {[%clk 0:00:17]} 31. Nb3 {[%clk 0:00:11]}  Nf5 {[%clk 0:00:15]} 32. a5 {[%clk 0:00:11]}  Bb8 {[%clk 0:00:13]} 33. Bc5 {[%clk 0:00:09]}  Nd6 {[%clk 0:00:11]} 34. Nd4 {[%clk 0:00:06]}  Ne4+ {[%clk 0:00:08]} 35. Ke2 {[%clk 0:00:04]}  Nxc5 {[%clk 0:00:07]} 36. Nxc5 {[%clk 0:00:04]}  Ba7 {[%clk 0:00:08]} 37. b4 {[%clk 0:00:00]}  Ke7 {[%clk 0:00:07]} 0-1


[Site "https://www.chess.com"]

[Event "Titled Tuesday Blitz July 11 Late 2023"]
[White "Martinez Ramirez, Lennis"]
[Black "Spichkin, Alexander"]
[WhiteFideId "3509079"]
[BlackFideId "4144074"]
[WhiteElo "2628"]
[BlackElo "2354"]
[Result "1-0"]
[Round "1"]
[TimeControl "180+2"]
[Date "2023.07.11"]
[WhiteClock "0:00:30"]
[BlackClock "0:00:27"]
[Board "116"]

1. Nf3 {[%clk 0:02:58]}  e6 {[%clk 0:02:59]} 2. g3 {[%clk 0:02:57]}  f5 {[%clk 0:02:58]} 3. Bg2 {[%clk 0:02:58]}  Nf6 {[%clk 0:02:57]} 4. O-O {[%clk 0:02:58]}  Be7 {[%clk 0:02:58]} 5. d3 {[%clk 0:02:59]}  d6 {[%clk 0:02:58]} 6. Nbd2 {[%clk 0:02:59]}  O-O {[%clk 0:02:58]} 7. e4 {[%clk 0:02:59]}  e5 {[%clk 0:02:54]} 8. exf5 {[%clk 0:02:57]}  Bxf5 {[%clk 0:02:53]} 9. d4 {[%clk 0:02:21]}  Nc6 {[%clk 0:02:38]} 10. dxe5 {[%clk 0:02:11]}  dxe5 {[%clk 0:02:36]} 11. c3 {[%clk 0:02:12]}  Kh8 {[%clk 0:02:20]} 12. Qb3 {[%clk 0:02:05]}  Rb8 {[%clk 0:02:18]} 13. Ng5 {[%clk 0:01:31]}  Qe8 {[%clk 0:02:13]} 14. Nde4 {[%clk 0:01:06]}  Nxe4 {[%clk 0:02:08]} 15. Nxe4 {[%clk 0:01:04]}  Qg6 {[%clk 0:02:07]} 16. Re1 {[%clk 0:00:59]}  Na5 {[%clk 0:01:53]} 17. Qa4 {[%clk 0:00:57]}  b6 {[%clk 0:01:50]} 18. Bd2 {[%clk 0:00:41]}  Rbd8 {[%clk 0:01:42]} 19. Rad1 {[%clk 0:00:40]}  Bd7 {[%clk 0:01:29]} 20. Qc2 {[%clk 0:00:38]}  Nc4 {[%clk 0:00:41]} 21. Bc1 {[%clk 0:00:37]}  Bf5 {[%clk 0:00:38]} 22. Rxd8 {[%clk 0:00:34]}  Rxd8 {[%clk 0:00:38]} 23. Qe2 {[%clk 0:00:34]}  Rf8 {[%clk 0:00:38]} 24. Qxc4 {[%clk 0:00:34]}  c5 {[%clk 0:00:38]} 25. Qe2 {[%clk 0:00:32]}  h6 {[%clk 0:00:37]} 26. f3 {[%clk 0:00:31]}  Bd8 {[%clk 0:00:36]} 27. Nf2 {[%clk 0:00:31]}  Bd3 {[%clk 0:00:36]} 28. Qxd3 {[%clk 0:00:30]}  Bf6 {[%clk 0:00:27]} 29. Qxg6 {[%clk 0:00:30]} 1-0


[Site "https://www.chess.com"]

[Event "Titled Tuesday Blitz July 11 Late 2023"]
[White "Veiga, Jose Francisco R P Neves"]
[Black "Stachanczyk, Jacek"]
[WhiteFideId "1930087"]
[BlackFideId "1116657"]
[WhiteElo "2625"]
[BlackElo "2348"]
[Result "0-1"]
[Round "1"]
[TimeControl "180+2"]
[Date "2023.07.11"]
[WhiteClock "0:00:01"]
[BlackClock "0:00:57"]
[Board "118"]

1. e4 {[%clk 0:02:59]}  c5 {[%clk 0:02:58]} 2. Nf3 {[%clk 0:02:59]}  d6 {[%clk 0:02:58]} 3. c3 {[%clk 0:02:55]}  Nf6 {[%clk 0:02:57]} 4. Be2 {[%clk 0:02:55]}  Nbd7 {[%clk 0:02:57]} 5. Qc2 {[%clk 0:02:34]}  Qc7 {[%clk 0:02:56]} 6. O-O {[%clk 0:02:33]}  b6 {[%clk 0:02:54]} 7. a4 {[%clk 0:02:28]}  Bb7 {[%clk 0:02:45]} 8. d3 {[%clk 0:02:28]}  e6 {[%clk 0:02:43]} 9. Na3 {[%clk 0:02:27]}  a6 {[%clk 0:02:41]} 10. Re1 {[%clk 0:02:21]}  Be7 {[%clk 0:02:41]} 11. Bf1 {[%clk 0:02:20]}  O-O {[%clk 0:02:40]} 12. h3 {[%clk 0:02:17]}  Rfe8 {[%clk 0:02:38]} 13. Bf4 {[%clk 0:02:16]}  e5 {[%clk 0:02:37]} 14. Bh2 {[%clk 0:02:00]}  Bf8 {[%clk 0:02:37]} 15. Nc4 {[%clk 0:02:00]}  g6 {[%clk 0:02:27]} 16. Ne3 {[%clk 0:01:56]}  Bg7 {[%clk 0:02:27]} 17. Qb3 {[%clk 0:01:42]}  Rad8 {[%clk 0:02:08]} 18. Nd5 {[%clk 0:01:25]}  Nxd5 {[%clk 0:02:04]} 19. exd5 {[%clk 0:01:26]}  Nf6 {[%clk 0:01:53]} 20. c4 {[%clk 0:01:24]}  Nh5 {[%clk 0:01:44]} 21. Nd2 {[%clk 0:01:20]}  Rb8 {[%clk 0:01:41]} 22. Ne4 {[%clk 0:01:10]}  h6 {[%clk 0:01:39]} 23. Nc3 {[%clk 0:00:52]}  Bc8 {[%clk 0:01:38]} 24. a5 {[%clk 0:00:47]}  b5 {[%clk 0:01:33]} 25. cxb5 {[%clk 0:00:44]}  axb5 {[%clk 0:01:34]} 26. a6 {[%clk 0:00:16]}  b4 {[%clk 0:01:34]} 27. Ne4 {[%clk 0:00:13]}  Bd7 {[%clk 0:01:25]} 28. Nd2 {[%clk 0:00:12]}  Ra8 {[%clk 0:01:24]} 29. Nc4 {[%clk 0:00:11]}  Bb5 {[%clk 0:01:21]} 30. a7 {[%clk 0:00:10]}  Bxc4 {[%clk 0:01:20]} 31. dxc4 {[%clk 0:00:09]}  Rxa7 {[%clk 0:01:20]} 32. Rxa7 {[%clk 0:00:09]}  Qxa7 {[%clk 0:01:21]} 33. f4 {[%clk 0:00:08]}  e4 {[%clk 0:01:19]} 34. g4 {[%clk 0:00:08]}  Bd4+ {[%clk 0:01:17]} 35. Kh1 {[%clk 0:00:08]}  Ng7 {[%clk 0:01:16]} 36. Bg2 {[%clk 0:00:07]}  f5 {[%clk 0:01:16]} 37. Bg1 {[%clk 0:00:05]}  Bf6 {[%clk 0:01:13]} 38. Be3 {[%clk 0:00:05]}  Ra8 {[%clk 0:01:07]} 39. g5 {[%clk 0:00:04]}  hxg5 {[%clk 0:01:06]} 40. fxg5 {[%clk 0:00:05]}  Be5 {[%clk 0:01:05]} 41. Re2 {[%clk 0:00:04]}  Nh5 {[%clk 0:01:05]} 42. Bf2 {[%clk 0:00:04]}  Qa1+ {[%clk 0:01:02]} 43. Re1 {[%clk 0:00:04]}  Qa2 {[%clk 0:00:56]} 44. Qxa2 {[%clk 0:00:01]}  Rxa2 {[%clk 0:00:57]} 0-1


[Site "https://www.chess.com"]

[Event "Titled Tuesday Blitz July 11 Late 2023"]
[White "Shapiro, Daniel"]
[Black "Rostomyan, Mikayel"]
[WhiteFideId "2001780"]
[BlackFideId "13313754"]
[WhiteElo "2348"]
[BlackElo "2624"]
[Result "0-1"]
[Round "1"]
[TimeControl "180+2"]
[Date "2023.07.11"]
[WhiteClock "0:00:00"]
[BlackClock "0:00:21"]
[Board "119"]

1. d4 {[%clk 0:03:00]}  d5 {[%clk 0:02:57]} 2. c4 {[%clk 0:03:01]}  e5 {[%clk 0:02:55]} 3. dxe5 {[%clk 0:03:00]}  Ne7 {[%clk 0:02:54]} 4. cxd5 {[%clk 0:02:57]}  Qxd5 {[%clk 0:02:52]} 5. Qxd5 {[%clk 0:02:53]}  Nxd5 {[%clk 0:02:53]} 6. a3 {[%clk 0:02:51]}  Nc6 {[%clk 0:02:53]} 7. Nf3 {[%clk 0:02:52]}  h6 {[%clk 0:02:52]} 8. g3 {[%clk 0:02:51]}  g5 {[%clk 0:02:52]} 9. h3 {[%clk 0:02:49]}  Bg7 {[%clk 0:02:52]} 10. e4 {[%clk 0:02:44]}  Nb6 {[%clk 0:02:51]} 11. Nc3 {[%clk 0:02:44]}  Be6 {[%clk 0:02:49]} 12. Bb5 {[%clk 0:02:40]}  Bc4 {[%clk 0:02:46]} 13. Bxc6+ {[%clk 0:02:35]}  bxc6 {[%clk 0:02:45]} 14. Be3 {[%clk 0:02:33]}  O-O-O {[%clk 0:02:42]} 15. Rd1 {[%clk 0:02:17]}  Bd3 {[%clk 0:02:31]} 16. Rd2 {[%clk 0:01:51]}  Nc4 {[%clk 0:02:29]} 17. Bxa7 {[%clk 0:01:41]}  Nxd2 {[%clk 0:02:23]} 18. Nxd2 {[%clk 0:01:41]}  Bxe5 {[%clk 0:02:22]} 19. Be3 {[%clk 0:01:36]}  Rhe8 {[%clk 0:02:21]} 20. Na4 {[%clk 0:01:25]}  Bc2 {[%clk 0:02:14]} 21. b3 {[%clk 0:01:15]}  Bd3 {[%clk 0:02:06]} 22. Nc5 {[%clk 0:01:12]}  Bc3 {[%clk 0:01:42]} 23. f3 {[%clk 0:00:49]}  Bc2 {[%clk 0:01:29]} 24. Ke2 {[%clk 0:00:45]}  Re5 {[%clk 0:01:14]} 25. Rc1 {[%clk 0:00:43]}  Bxd2 {[%clk 0:01:11]} 26. Rxc2 {[%clk 0:00:36]}  Bxe3 {[%clk 0:01:05]} 27. Kxe3 {[%clk 0:00:37]}  Re7 {[%clk 0:01:00]} 28. f4 {[%clk 0:00:36]}  f5 {[%clk 0:00:58]} 29. e5 {[%clk 0:00:36]}  Rd5 {[%clk 0:00:57]} 30. b4 {[%clk 0:00:34]}  Rd1 {[%clk 0:00:55]} 31. Rf2 {[%clk 0:00:30]}  Rg1 {[%clk 0:00:54]} 32. Kf3 {[%clk 0:00:26]}  Rg7 {[%clk 0:00:47]} 33. Re2 {[%clk 0:00:11]}  gxf4 {[%clk 0:00:36]} 34. gxf4 {[%clk 0:00:08]}  R7g3+ {[%clk 0:00:32]} 35. Kf2 {[%clk 0:00:08]}  R1g2+ {[%clk 0:00:32]} 36. Ke1 {[%clk 0:00:06]}  Rxe2+ {[%clk 0:00:31]} 37. Kxe2 {[%clk 0:00:07]}  Rxh3 {[%clk 0:00:25]} 38. e6 {[%clk 0:00:06]}  Kd8 {[%clk 0:00:26]} 39. Nd3 {[%clk 0:00:04]}  Ke7 {[%clk 0:00:23]} 40. Ne5 {[%clk 0:00:04]}  Kxe6 {[%clk 0:00:23]} 41. Nxc6 {[%clk 0:00:04]}  Rxa3 {[%clk 0:00:23]} 42. Nd4+ {[%clk 0:00:03]}  Kf6 {[%clk 0:00:23]} 43. b5 {[%clk 0:00:03]}  h5 {[%clk 0:00:23]} 44. Nc6 {[%clk 0:00:02]}  h4 {[%clk 0:00:22]} 45. Ne5 {[%clk 0:00:01]}  h3 {[%clk 0:00:22]} 46. Nf3 {[%clk 0:00:01]}  h2 {[%clk 0:00:20]} 47. Nxh2 {[%clk 0:00:01]}  Ra2+ {[%clk 0:00:20]} 48. Kd3 {[%clk 0:00:00]}  Rxh2 {[%clk 0:00:21]} 0-1


[Site "https://www.chess.com"]

[Event "Titled Tuesday Blitz July 11 Late 2023"]
[White "Mendez Fortes, Eduardo Jesus"]
[Black "Cluke86"]
[WhiteFideId "3502376"]
[WhiteElo "2623"]
[BlackElo "2346"]
[Result "1-0"]
[Round "1"]
[TimeControl "180+2"]
[Date "2023.07.11"]
[WhiteClock "0:01:41"]
[BlackClock "0:00:50"]
[Board "120"]

1. e4 {[%clk 0:03:00]}  d6 {[%clk 0:02:58]} 2. d4 {[%clk 0:03:01]}  Nf6 {[%clk 0:02:57]} 3. Nc3 {[%clk 0:03:00]}  e5 {[%clk 0:02:57]} 4. Nf3 {[%clk 0:02:59]}  Nbd7 {[%clk 0:02:57]} 5. Bc4 {[%clk 0:02:58]}  Be7 {[%clk 0:02:55]} 6. O-O {[%clk 0:02:57]}  c6 {[%clk 0:02:55]} 7. h3 {[%clk 0:02:57]}  Qc7 {[%clk 0:02:53]} 8. a4 {[%clk 0:02:57]}  h6 {[%clk 0:02:52]} 9. Be3 {[%clk 0:02:57]}  g5 {[%clk 0:02:50]} 10. Nh2 {[%clk 0:02:54]}  Nf8 {[%clk 0:02:47]} 11. d5 {[%clk 0:02:53]}  Ng6 {[%clk 0:02:43]} 12. a5 {[%clk 0:02:52]}  Nf4 {[%clk 0:02:40]} 13. Ba2 {[%clk 0:02:45]}  c5 {[%clk 0:02:31]} 14. Nb5 {[%clk 0:02:44]}  Qd8 {[%clk 0:02:31]} 15. Bc4 {[%clk 0:02:42]}  Nxe4 {[%clk 0:02:26]} 16. Re1 {[%clk 0:02:33]}  Nf6 {[%clk 0:02:20]} 17. Bxc5 {[%clk 0:02:30]}  dxc5 {[%clk 0:02:13]} 18. d6 {[%clk 0:02:29]}  Bxd6 {[%clk 0:01:55]} 19. Nxd6+ {[%clk 0:02:24]}  Kf8 {[%clk 0:01:53]} 20. Nxf7 {[%clk 0:02:21]}  Qxd1 {[%clk 0:01:50]} 21. Raxd1 {[%clk 0:02:20]}  Rh7 {[%clk 0:01:48]} 22. Nxe5 {[%clk 0:02:20]}  Bf5 {[%clk 0:01:43]} 23. Nhg4 {[%clk 0:02:08]}  Nxg4 {[%clk 0:01:37]} 24. hxg4 {[%clk 0:02:08]}  Bxc2 {[%clk 0:01:30]} 25. Rd6 {[%clk 0:02:07]}  Re7 {[%clk 0:01:23]} 26. g3 {[%clk 0:02:01]}  Rae8 {[%clk 0:01:14]} 27. gxf4 {[%clk 0:01:58]}  gxf4 {[%clk 0:01:06]} 28. Nd7+ {[%clk 0:01:42]}  Rxd7 {[%clk 0:01:01]} 29. Rxe8+ {[%clk 0:01:41]}  Kxe8 {[%clk 0:00:50]} 30. Bb5 {[%clk 0:01:41]} 1-0


[Site "https://www.chess.com"]

[Event "Titled Tuesday Blitz July 11 Late 2023"]
[White "Kantans, Toms"]
[Black "Schuster, Karsten"]
[WhiteFideId "11602945"]
[BlackFideId "4611071"]
[WhiteElo "2620"]
[BlackElo "2338"]
[Result "1-0"]
[Round "1"]
[TimeControl "180+2"]
[Date "2023.07.11"]
[WhiteClock "0:00:43"]
[BlackClock "0:00:12"]
[Board "122"]

1. e4 {[%clk 0:02:59]}  d5 {[%clk 0:02:59]} 2. exd5 {[%clk 0:02:59]}  Qxd5 {[%clk 0:02:56]} 3. Nc3 {[%clk 0:02:59]}  Qd6 {[%clk 0:02:56]} 4. d4 {[%clk 0:02:58]}  c6 {[%clk 0:02:57]} 5. Nf3 {[%clk 0:02:58]}  Bg4 {[%clk 0:02:57]} 6. h3 {[%clk 0:02:55]}  Bxf3 {[%clk 0:02:56]} 7. Qxf3 {[%clk 0:02:56]}  Nf6 {[%clk 0:02:56]} 8. Be3 {[%clk 0:02:56]}  e6 {[%clk 0:02:56]} 9. O-O-O {[%clk 0:02:56]}  Qc7 {[%clk 0:02:56]} 10. g4 {[%clk 0:02:55]}  Bd6 {[%clk 0:02:55]} 11. Bg2 {[%clk 0:02:52]}  Nbd7 {[%clk 0:02:54]} 12. Kb1 {[%clk 0:02:49]}  Nb6 {[%clk 0:02:49]} 13. Bc1 {[%clk 0:02:48]}  Nbd5 {[%clk 0:02:46]} 14. Ne2 {[%clk 0:02:47]}  O-O-O {[%clk 0:02:41]} 15. c4 {[%clk 0:02:46]}  Nb4 {[%clk 0:02:38]} 16. a3 {[%clk 0:02:45]}  Na6 {[%clk 0:02:37]} 17. g5 {[%clk 0:02:44]}  Ne8 {[%clk 0:02:36]} 18. Nc3 {[%clk 0:02:39]}  f6 {[%clk 0:02:22]} 19. h4 {[%clk 0:02:36]}  Qf7 {[%clk 0:02:06]} 20. Rhe1 {[%clk 0:02:27]}  Rf8 {[%clk 0:02:04]} 21. Qe2 {[%clk 0:02:23]}  Nac7 {[%clk 0:02:04]} 22. Ne4 {[%clk 0:02:10]}  fxg5 {[%clk 0:02:02]} 23. hxg5 {[%clk 0:01:57]}  Bf4 {[%clk 0:01:58]} 24. Bxf4 {[%clk 0:01:48]}  Qxf4 {[%clk 0:01:57]} 25. Ka1 {[%clk 0:01:49]}  Nd6 {[%clk 0:01:48]} 26. Nc5 {[%clk 0:01:47]}  Qxf2 {[%clk 0:01:44]} 27. Nxe6 {[%clk 0:01:31]}  Qxe2 {[%clk 0:01:43]} 28. Rxe2 {[%clk 0:01:32]}  Nxe6 {[%clk 0:01:43]} 29. Rxe6 {[%clk 0:01:33]}  Nxc4 {[%clk 0:01:43]} 30. d5 {[%clk 0:01:33]}  Rf2 {[%clk 0:01:33]} 31. Bh3 {[%clk 0:01:34]}  Kb8 {[%clk 0:01:31]} 32. d6 {[%clk 0:01:31]}  Nxb2 {[%clk 0:01:26]} 33. Rde1 {[%clk 0:01:22]}  Nc4 {[%clk 0:01:21]} 34. Re8 {[%clk 0:01:19]}  Rf8 {[%clk 0:01:07]} 35. d7 {[%clk 0:01:18]}  Nd6 {[%clk 0:00:59]} 36. Rxd8+ {[%clk 0:01:05]}  Rxd8 {[%clk 0:00:58]} 37. Re7 {[%clk 0:01:06]}  g6 {[%clk 0:00:53]} 38. Rxh7 {[%clk 0:01:04]}  Kc7 {[%clk 0:00:53]} 39. Rg7 {[%clk 0:01:03]}  Nf5 {[%clk 0:00:52]} 40. Rxg6 {[%clk 0:01:02]}  Nd4 {[%clk 0:00:31]} 41. Rf6 {[%clk 0:01:02]}  Nc2+ {[%clk 0:00:23]} 42. Kb2 {[%clk 0:01:01]}  Ne3 {[%clk 0:00:23]} 43. g6 {[%clk 0:00:56]}  Nd5 {[%clk 0:00:23]} 44. Rf7 {[%clk 0:00:52]}  Kd6 {[%clk 0:00:24]} 45. g7 {[%clk 0:00:51]}  Ne7 {[%clk 0:00:24]} 46. Rf8 {[%clk 0:00:49]}  Kc7 {[%clk 0:00:22]} 47. Re8 {[%clk 0:00:48]}  Ng8 {[%clk 0:00:20]} 48. Be6 {[%clk 0:00:49]}  Nf6 {[%clk 0:00:17]} 49. Rf8 {[%clk 0:00:46]}  Rxd7 {[%clk 0:00:12]} 50. Bxd7 {[%clk 0:00:43]} 1-0


[Site "https://www.chess.com"]